fUST/lending_fUST_20250317
["ID","MTS","AMOUNT","RATE_DAILY","PERIOD"]
[356292318,1742200241219,-500.0,8.219e-05,2]
[356292319,1742200241228,-500.0,8.219e-05,2]
[356292320,1742200241238,-833.33,8.219e-05,2]
[356292321,1742200241247,-5391.6,8.219e-05,2]
[356292322,1742200241257,-833.33,8.219e-05,2]
[356292323,1742200241267,-833.33,8.219e-05,2]
[356292324,1742200241276,-833.33,8.219e-05,2]
[356292325,1742200241286,-833.33,8.219e-05,2]
[356292326,1742200241295,-500.0,8.219e-05,2]
[356292327,1742200241305,-833.33,8.219e-05,2]
[356292328,1742200241314,-833.33,8.219e-05,2]
[356292329,1742200241323,-833.33,8.219e-05,2]
[356292330,1742200241333,-833.33,8.219e-05,2]
[356292331,1742200241342,-833.33,8.219e-05,2]
[356292332,1742200241352,-833.33,8.219e-05,2]
[356292333,1742200241361,-833.33,8.219e-05,2]
[356292334,1742200241372,-833.33,8.219e-05,2]
[356292335,1742200241382,-833.33,8.219e-05,2]
[356292336,1742200241391,-833.33,8.219e-05,2]
[356292337,1742200241400,-571.79,8.219e-05,2]
[356292338,1742200241410,-500.0,8.219e-05,2]
[356292339,1742200241420,-510.52130292,8.219e-05,2]
[356292340,1742200241429,-500.0,8.219e-05,2]
[356292341,1742200241439,-531.36,8.219e-05,2]
[356292342,1742200241448,-507.41680848,8.219e-05,2]
[356292343,1742200241458,-505.27591986,8.219e-05,2]
[356292344,1742200241467,-514.9508566,8.219e-05,2]
[356292345,1742200241478,-500.0,8.219e-05,2]
[356292346,1742200241487,-505.01481835,8.219e-05,2]
[356292347,1742200241496,-500.0,8.219e-05,2]
[356292348,1742200241506,-500.0,8.219e-05,2]
[356292349,1742200241515,-500.0,8.219e-05,2]
[356292350,1742200241524,-511.26075548,8.219e-05,2]
[356292351,1742200241534,-943.74,8.219e-05,2]
[356292352,1742200241544,-500.0,8.219e-05,2]
[356292353,1742200241554,-503.79795279,8.219e-05,2]
[356292354,1742200241563,-500.0,8.219e-05,2]
[356292355,1742200241572,-500.0,8.219e-05,2]
[356292356,1742200241582,-610.85255488,8.219e-05,2]
[356292357,1742200241591,-500.0,8.219e-05,2]
[356292358,1742200241601,-500.0,8.219e-05,2]
[356292359,1742200241610,-2474.81,8.219e-05,2]
[356292360,1742200241621,-500.0,8.219e-05,2]
[356292361,1742200241631,-500.0,8.219e-05,2]
[356292362,1742200241641,-500.0,8.219e-05,2]
[356292363,1742200241651,-516.77,8.219e-05,2]
[356292364,1742200241660,-500.0,8.219e-05,2]
[356292365,1742200241838,-540.21849621,8.219e-05,2]
[356292366,1742200241849,-518.51287422,8.219e-05,2]
[356292367,1742200241859,-500.0,8.219e-05,2]
[356292368,1742200241869,-500.0,8.219e-05,2]
[356292369,1742200241879,-500.0,8.219e-05,2]
[356292370,1742200241888,-500.0,8.219e-05,2]
[356292371,1742200241899,-500.0,8.267e-05,2]
[356292372,1742200241908,-500.0,8.267e-05,2]
[356292373,1742200241918,-500.0,8.267e-05,2]
[356292374,1742200241928,-187.0368658,8.27e-05,2]
[356292375,1742200241939,-187.0368658,8.27e-05,2]
[356292376,1742200241950,-819.46244193,8.281e-05,2]
[356292377,1742200241960,-187.0368658,8.3e-05,2]
[356292378,1742200241970,-187.0368658,8.3e-05,2]
[356292379,1742200241979,-187.0368658,8.3e-05,2]
[356292380,1742200241989,-187.0368658,8.3e-05,2]
[356292381,1742200241998,-187.0368658,8.3e-05,2]
[356292382,1742200242008,-187.0368658,8.3e-05,2]
[356292383,1742200242017,-214.08328978,8.34e-05,2]
[356292384,1742200242027,-160.0,8.34e-05,2]
[356292385,1742200242037,-160.0,8.34e-05,2]
[356292386,1742200242047,-833.89138366,8.34e-05,2]
[356292387,1742200242058,-417.81762827,8.34e-05,2]
[356292388,1742200242068,-187.0368658,8.34e-05,2]
[356292389,1742200242078,-155.6779931,8.34e-05,2]
[356292390,1742200242087,-187.0368658,8.34e-05,2]
[356292391,1742200242103,-155.6779931,8.34e-05,2]
[356292392,1742200242114,-315.1028274,8.34e-05,2]
[356292393,1742200242124,-187.0368658,8.34e-05,2]
[356292394,1742200242135,-187.0368658,8.34e-05,2]
[356292395,1742200242144,-187.0368658,8.34e-05,2]
[356292396,1742200242154,-187.0368658,8.39e-05,2]
[356292397,1742200242164,-155.6779931,8.39e-05,2]
[356292398,1742200242174,-560.4749021,8.39e-05,2]
[356292399,1742200242185,-500.84022393,8.393e-05,2]
[356292400,1742200242195,-500.0,8.393e-05,2]
[356292401,1742200242204,-500.0,8.393e-05,2]
[356292402,1742200242214,-500.0,8.393e-05,2]
[356292403,1742200242223,-500.0,8.399e-05,2]
[356292404,1742200242233,-833.33,8.399e-05,2]
[356292405,1742200242243,-381.3870813,8.4e-05,2]
[356292406,1742200242253,-598.7003845,8.4e-05,2]
[356292407,1742200242263,-187.0368658,8.4e-05,2]
[356292408,1742200242273,-155.6779931,8.4e-05,2]
[356292409,1742200242282,-156.1732739,8.4e-05,2]
[356292410,1742200242293,-187.0368658,8.4e-05,2]
[356292411,1742200242303,-560.4749021,8.4e-05,2]
[356292412,1742200242313,-155.6779931,8.4e-05,2]
[356292413,1742200242322,-156.587,8.41e-05,2]
[356292414,1742200242332,-399.0,8.416e-05,2]
[356292415,1742200242342,-150.0,8.416e-05,2]
[356292416,1742200242351,-270.0,8.436e-05,2]
[356292417,1742200242361,-499.999999,8.439e-05,2]
[356292418,1742200242371,-500.0,8.492e-05,2]
[356292419,1742200242382,-500.0,8.492e-05,2]
[356292420,1742200242391,-614.58,8.492e-05,2]
[356292421,1742200242401,-833.33,8.492e-05,2]
[356292422,1742200242411,-833.33,8.492e-05,2]
[356292423,1742200242420,-833.33,8.492e-05,2]
[356292424,1742200242429,-833.33,8.492e-05,2]
[356292425,1742200242439,-833.33,8.492e-05,2]
[356292426,1742200242448,-833.33,8.492e-05,2]
[356292427,1742200242458,-833.33,8.492e-05,2]
[356292428,1742200242467,-833.41,8.492e-05,2]
[356292429,1742200242477,-500.0,8.493e-05,2]
[356292430,1742200242487,-500.0,8.493e-05,2]
[356292431,1742200242496,-351.78077859,8.493e-05,2]
[356292432,1742200242505,-500.0,8.493e-05,2]
[356292433,1742200242515,-500.0,8.493e-05,2]
[356292434,1742200242524,-545.15,8.493e-05,2]
[356292435,1742200242534,-225.19509601,8.493e-05,2]
[356292436,1742200242543,-500.0,8.493e-05,2]
[356292437,1742200242555,-500.0,8.493e-05,2]
[356292438,1742200242566,-500.0,8.493e-05,2]
[356292439,1742200242575,-500.0,8.493e-05,2]
[356292440,1742200242585,-500.0,8.493e-05,2]
[356292441,1742200242595,-500.0,8.493e-05,2]
[356292442,1742200242605,-500.0,8.493e-05,2]
[356292443,1742200242615,-500.0,8.493e-05,2]
[356292444,1742200242624,-548.25109539,8.493e-05,2]
[356292445,1742200242633,-535.22167702,8.493e-05,2]
[356292446,1742200242643,-500.0,8.493e-05,2]
[356292447,1742200242652,-517.80781401,8.493e-05,2]
[356292448,1742200242661,-815.93,8.493e-05,2]
[356292449,1742200242670,-500.0,8.493e-05,2]
[356292450,1742200242679,-500.0,8.493e-05,2]
[356292451,1742200242689,-500.0,8.493e-05,2]
[356292452,1742200242699,-3809.03,8.493e-05,2]
[356292453,1742200242708,-2039.59,8.493e-05,2]
[356292454,1742200242717,-539.03,8.493e-05,2]
[356292455,1742200242727,-500.0,8.493e-05,2]
[356292456,1742200242736,-500.0,8.493e-05,2]
[356292457,1742200242746,-500.0,8.493e-05,2]
[356292458,1742200242755,-500.0,8.493e-05,2]
[356292459,1742200242765,-949.25,8.493e-05,2]
[356292460,1742200242774,-500.0,8.493e-05,2]
[356292461,1742200242784,-500.0,8.493e-05,2]
[356292462,1742200242794,-242.32338447,8.493e-05,2]
[356292463,1742200242803,-500.0,8.493e-05,2]
[356292464,1742200242813,-3152.42,8.493e-05,2]
[356292465,1742200242822,-500.0,8.493e-05,2]
[356292466,1742200242832,-500.0,8.493e-05,2]
[356292467,1742200242841,-3196.58,8.493e-05,2]
[356292468,1742200242851,-2387.34,8.493e-05,2]
[356292469,1742200242861,-500.0,8.493e-05,2]
[356292470,1742200242871,-500.0,8.493e-05,2]
[356292471,1742200242880,-1792.41,8.493e-05,2]
[356292472,1742200242890,-1292.56,8.493e-05,2]
[356292473,1742200242900,-500.0,8.493e-05,2]
[356292475,1742200242910,-500.0,8.493e-05,2]
[356292476,1742200242920,-500.0,8.493e-05,2]
[356292478,1742200242929,-500.0,8.493e-05,2]
[356292480,1742200242939,-1497.17,8.493e-05,2]
[356292481,1742200242948,-500.0,8.493e-05,2]
[356292484,1742200242959,-35920.98041598,8.493e-05,2]
[356292488,1742200243118,-4571.66483034,8.493e-05,2]
[356292638,1742200410808,200.0,0.00014183,120]
[356292639,1742200706627,342.48,8.001e-05,2]
[356292640,1742200939671,156.48739094,8.001e-05,2]
[356292641,1742201221918,4113.83415247,7.397e-05,2]
[356292642,1742201221948,20786.16584753,7.397e-05,2]
[356292643,1742201284388,182.0500493,7.443e-05,2]
[356292644,1742201361091,202.922946,7.375e-05,2]
[356292682,1742201432811,-500.0,8.218e-05,2]
[356292683,1742201432820,-500.0,8.218e-05,2]
[356292685,1742201432830,-209.5,8.218e-05,2]
[356292687,1742201432839,-360.61306369,8.218e-05,2]
[356292689,1742201432848,-300.0,8.218e-05,2]
[356292691,1742201432857,-500.0,8.219e-05,2]
[356292693,1742201432866,-500.0,8.219e-05,2]
[356292695,1742201432876,-500.0,8.219e-05,2]
[356292697,1742201432885,-271.1336344,8.219e-05,2]
[356292699,1742201432894,-496.19439756,8.219e-05,2]
[356292803,1742201438444,-3.80560244,8.219e-05,2]
[356292804,1742201438455,-500.0,8.219e-05,2]
[356292805,1742201438464,-500.0,8.219e-05,2]
[356292806,1742201438475,-500.0,8.219e-05,2]
[356292807,1742201438485,-500.0,8.219e-05,2]
[356292808,1742201438495,-500.0,8.219e-05,2]
[356292809,1742201438506,-500.0,8.219e-05,2]
[356292810,1742201438520,-563.38602048,8.219e-05,2]
[356292811,1742201438532,-514.35145651,8.219e-05,2]
[356292812,1742201438541,-198.48,8.219e-05,2]
[356292813,1742201438552,-523.46173447,8.219e-05,2]
[356292814,1742201438562,-215.3951861,8.219e-05,2]
[356292825,1742201443819,-284.6048139,8.219e-05,2]
[356292826,1742201443829,-87.0951861,8.219e-05,2]
[356292862,1742201446744,-199.0,8.2e-05,2]
[356292863,1742201446754,-412.9048139,8.219e-05,2]
[356292864,1742201446763,-225.8951861,8.219e-05,2]
[356292866,1742201591202,250.0,7.315e-05,2]
[356292868,1742202166109,40008.7421746,7.143e-05,2]
[356292869,1742202417456,24900.0,7.397e-05,2]
[356292895,1742202632010,-350.38277721,8.118e-05,2]
[356293117,1742202642826,-500.0,8.117e-05,2]
[356293118,1742202642836,-500.0,8.117e-05,2]
[356293119,1742202642846,-500.0,8.117e-05,2]
[356293120,1742202643036,-449.23165032,8.117e-05,2]
[356293121,1742202643046,-500.0,8.117e-05,2]
[356293122,1742202643056,-500.0,8.117e-05,2]
[356293123,1742202643065,-500.0,8.117e-05,2]
[356293124,1742202643075,-500.0,8.117e-05,2]
[356293125,1742202643084,-24.23442292,8.117e-05,2]
[356293153,1742202645932,-475.76557708,8.117e-05,2]
[356293155,1742202645942,-500.0,8.117e-05,2]
[356293157,1742202645951,-500.0,8.117e-05,2]
[356293158,1742202645961,-500.0,8.117e-05,2]
[356293160,1742202645971,-500.0,8.117e-05,2]
[356293163,1742202645981,-500.0,8.117e-05,2]
[356293164,1742202645990,-500.0,8.117e-05,2]
[356293167,1742202646002,-500.0,8.117e-05,2]
[356293168,1742202646012,-500.0,8.117e-05,2]
[356293170,1742202646022,-500.0,8.117e-05,2]
[356293172,1742202646031,-500.0,8.117e-05,2]
[356293174,1742202646040,-500.0,8.117e-05,2]
[356293176,1742202646049,-500.0,8.117e-05,2]
[356293178,1742202646059,-500.0,8.117e-05,2]
[356293180,1742202646072,-500.0,8.117e-05,2]
[356293182,1742202646084,-500.0,8.117e-05,2]
[356293185,1742202646094,-500.0,8.117e-05,2]
[356293186,1742202646103,-500.0,8.117e-05,2]
[356293188,1742202646113,-500.0,8.117e-05,2]
[356293189,1742202646122,-301.71670179,8.117e-05,2]
[356293190,1742202646132,-19649.61722279,8.118e-05,2]
[356293191,1742202646141,-500.0,8.118e-05,2]
[356293192,1742202646151,-206.20863419,8.118e-05,2]
[356293193,1742202646160,-196.79177856,8.118e-05,2]
[356293194,1742202646170,-222000.0,8.119e-05,2]
[356293195,1742202646180,-152.69601212,8.214e-05,2]
[356293196,1742202646191,-1200.0,8.214e-05,2]
[356293197,1742202646201,-500.0,8.219e-05,2]
[356293198,1742202646211,-274.1048139,8.219e-05,2]
[356293199,1742202646220,-500.0,8.219e-05,2]
[356293200,1742202646229,-500.0,8.219e-05,2]
[356293201,1742202646239,-845.54851237,8.219e-05,2]
[356293202,1742202646248,-1869.62,8.219e-05,2]
[356293203,1742202646258,-870.14,8.219e-05,2]
[356293204,1742202646267,-364.69,8.219e-05,2]
[356293205,1742202646276,-2889.72,8.219e-05,2]
[356293206,1742202646285,-500.0,8.219e-05,2]
[356293207,1742202646295,-500.0,8.219e-05,2]
[356293208,1742202646304,-2188.39,8.219e-05,2]
[356293209,1742202646313,-2930.2,8.219e-05,2]
[356293210,1742202646322,-456.11,8.219e-05,2]
[356293211,1742202646330,-1184.84,8.219e-05,2]
[356293212,1742202646338,-1643.04,8.219e-05,2]
[356293213,1742202646346,-500.0,8.219e-05,2]
[356293214,1742202646355,-151.4053148,8.219e-05,2]
[356293215,1742202646363,-69216.96,8.219e-05,2]
[356293216,1742202646371,-500.0,8.219e-05,2]
[356293217,1742202646380,-1372.4,8.219e-05,2]
[356293218,1742202646390,-7038.1,8.219e-05,2]
[356293219,1742202646399,-500.0,8.219e-05,2]
[356293220,1742202646409,-2350.17,8.219e-05,2]
[356293221,1742202646419,-903.1,8.219e-05,2]
[356293222,1742202646428,-500.0,8.219e-05,2]
[356293223,1742202646438,-231.39,8.219e-05,2]
[356293224,1742202646447,-772.44,8.219e-05,2]
[356293225,1742202646457,-1854.12,8.219e-05,2]
[356293226,1742202646467,-2803.03843858,8.219e-05,2]
[356293227,1742203471599,24900.0,7.397e-05,2]
[356293231,1742203563569,1485.11244626,8.017e-05,120]
[356293299,1742203840142,-300.0,8.017e-05,2]
[356293300,1742203840152,-500.0,8.018e-05,2]
[356293301,1742203840162,-185.87242197,8.018e-05,2]
[356293302,1742203840172,-311.99168667,8.018e-05,2]
[356293303,1742203840181,-500.0,8.018e-05,2]
[356293304,1742203840191,-500.0,8.018e-05,2]
[356293305,1742203840201,-500.0,8.018e-05,2]
[356293306,1742203840211,-500.0,8.018e-05,2]
[356293307,1742203840221,-560.34334035,8.018e-05,2]
[356293308,1742203840230,-4514.59255101,8.019e-05,2]
[356293322,1742203842941,-39777.49313271,8.019e-05,2]
[356293323,1742203843054,-8742.11941622,8.019e-05,2]
[356293324,1742203843101,-58991.34340693,8.019e-05,2]
[356293379,1742203846053,-3239.8,8.019e-05,2]
[356293380,1742204374433,601.7292505,7.274e-05,2]
[356293381,1742204405811,200.0,8e-05,2]
[356293394,1742205032336,-300.0,8.117e-05,2]
[356293395,1742205032346,-500.0,8.118e-05,2]
[356293396,1742205032356,-235.19556083,8.118e-05,2]
[356293397,1742205032366,-284.48259337,8.118e-05,2]
[356293398,1742205032375,-243.597506,8.118e-05,2]
[356293399,1742205032387,-500.0,8.118e-05,2]
[356293400,1742205032396,-500.0,8.118e-05,2]
[356293401,1742205032406,-500.0,8.118e-05,2]
[356293402,1742205032416,-500.0,8.118e-05,2]
[356293403,1742205032425,-304.30900631,8.118e-05,2]
[356293404,1742205032435,-42942.32583785,8.119e-05,2]
[356293484,1742205038099,-1219.75,8.119e-05,2]
[356293491,1742205040295,-1016.62717846,8.119e-05,2]
[356293492,1742205040307,-981.28920355,8.119e-05,2]
[356293493,1742205040318,-428.21868673,8.119e-05,2]
[356293494,1742205040330,-2833.1421532,8.119e-05,2]
[356293495,1742205040341,-398.076,8.119e-05,2]
[356293508,1742205043192,-7622.68783381,8.119e-05,2]
[356293535,1742205046294,-4393.87657791,8.119e-05,2]
[356293537,1742205321936,574.0,0.00014,30]
[356293558,1742205521712,329.063657,7.216e-05,2]
[356293559,1742205693691,24900.0,7.397e-05,2]
[356293560,1742205790315,10000.0,8e-05,2]
[356293561,1742205799907,5900.0,8e-05,2]
[356293615,1742206232450,-185.87242197,8.018e-05,2]
[356293617,1742206232460,-500.0,8.018e-05,2]
[356293619,1742206232469,-185.15514678,8.018e-05,2]
[356293621,1742206232478,-256.03433404,8.018e-05,2]
[356293623,1742206232487,-300.0,8.018e-05,2]
[356293625,1742206232497,-222000.0,8.019e-05,2]
[356293627,1742206232506,-500.0,8.119e-05,2]
[356293629,1742206232516,-186.809,8.119e-05,2]
[356293631,1742206232525,-500.0,8.193e-05,2]
[356293633,1742206232535,-170.03267117,8.193e-05,2]
[356293635,1742206232544,-505.07319671,8.193e-05,2]
[356293637,1742206232553,-501.64342316,8.193e-05,2]
[356293639,1742206232561,-500.0,8.193e-05,2]
[356293641,1742206232571,-340.04854281,8.193e-05,2]
[356293643,1742206232580,-454.11995852,8.193e-05,2]
[356293645,1742206232589,-500.05044248,8.193e-05,2]
[356293647,1742206232602,-505.57002045,8.193e-05,2]
[356293649,1742206232611,-500.0,8.193e-05,2]
[356293651,1742206232621,-500.0,8.193e-05,2]
[356293653,1742206232630,-160.0,8.193e-05,2]
[356293655,1742206232639,-500.0,8.193e-05,2]
[356293657,1742206232649,-250.000001,8.198e-05,2]
[356293659,1742206232658,-600.0,8.214e-05,2]
[356293660,1742206232667,-151.0,8.218e-05,2]
[356293661,1742206232676,-501.0,8.219e-05,2]
[356293662,1742206232686,-151.0,8.219e-05,2]
[356293663,1742206232695,-503.34330153,8.219e-05,2]
[356293664,1742206232706,-344.99728756,8.219e-05,2]
[356293665,1742206232715,-548.31185318,8.219e-05,2]
[356293666,1742206232724,-515.38447583,8.219e-05,2]
[356293667,1742206232734,-500.0,8.219e-05,2]
[356293668,1742206232743,-500.0,8.219e-05,2]
[356293669,1742206232753,-500.0,8.219e-05,2]
[356293670,1742206232762,-500.0,8.219e-05,2]
[356293671,1742206232772,-500.0,8.219e-05,2]
[356293672,1742206232781,-500.0,8.219e-05,2]
[356293673,1742206232791,-500.0,8.219e-05,2]
[356293674,1742206232800,-500.0,8.219e-05,2]
[356293675,1742206232810,-500.0,8.219e-05,2]
[356293676,1742206232819,-500.0,8.219e-05,2]
[356293677,1742206232829,-526.51,8.219e-05,2]
[356293678,1742206232839,-500.0,8.219e-05,2]
[356293680,1742206232848,-500.0,8.219e-05,2]
[356293682,1742206232858,-500.0,8.219e-05,2]
[356293684,1742206232867,-500.0,8.219e-05,2]
[356293685,1742206232876,-500.0,8.219e-05,2]
[356293687,1742206232886,-500.0,8.219e-05,2]
[356293688,1742206232895,-500.0,8.219e-05,2]
[356293689,1742206232904,-500.0,8.219e-05,2]
[356293690,1742206232914,-500.0,8.219e-05,2]
[356293692,1742206232924,-500.0,8.219e-05,2]
[356293693,1742206232934,-500.0,8.219e-05,2]
[356293694,1742206232943,-500.0,8.219e-05,2]
[356293695,1742206232953,-500.0,8.219e-05,2]
[356293696,1742206232963,-500.0,8.219e-05,2]
[356293697,1742206232972,-500.0,8.219e-05,2]
[356293698,1742206232981,-500.0,8.219e-05,2]
[356293699,1742206232991,-500.0,8.219e-05,2]
[356293700,1742206233000,-500.0,8.219e-05,2]
[356293701,1742206233010,-500.0,8.219e-05,2]
[356293702,1742206233019,-418.98745018,8.219e-05,2]
[356293703,1742206233029,-500.0,8.219e-05,2]
[356293704,1742206233040,-500.0,8.219e-05,2]
[356293705,1742206233050,-500.0,8.219e-05,2]
[356293706,1742206233060,-500.0,8.219e-05,2]
[356293707,1742206233073,-500.0,8.219e-05,2]
[356293708,1742206233083,-500.0,8.219e-05,2]
[356293709,1742206233094,-510.40496813,8.219e-05,2]
[356293710,1742206233105,-500.0,8.219e-05,2]
[356293711,1742206233115,-2371.69,8.219e-05,2]
[356293712,1742206233125,-500.0,8.219e-05,2]
[356293713,1742206233136,-500.0,8.219e-05,2]
[356293714,1742206233147,-436.18549233,8.219e-05,2]
[356293715,1742206233157,-500.0,8.219e-05,2]
[356293716,1742206233167,-593.79623271,8.219e-05,2]
[356293717,1742206233177,-500.0,8.219e-05,2]
[356293718,1742206233187,-500.0,8.219e-05,2]
[356293719,1742206233197,-500.0,8.219e-05,2]
[356293720,1742206233208,-500.0,8.219e-05,2]
[356293721,1742206233217,-501.90934892,8.219e-05,2]
[356293722,1742206233227,-598.94030797,8.219e-05,2]
[356293723,1742206233237,-500.0,8.219e-05,2]
[356293724,1742206233248,-500.0,8.219e-05,2]
[356293725,1742206233258,-500.0,8.219e-05,2]
[356293726,1742206233268,-500.0,8.219e-05,2]
[356293727,1742206233278,-500.0,8.219e-05,2]
[356293728,1742206233288,-500.0,8.219e-05,2]
[356293729,1742206233297,-768.77,8.219e-05,2]
[356293730,1742206233308,-500.0,8.219e-05,2]
[356293731,1742206233318,-500.0,8.219e-05,2]
[356293732,1742206233328,-500.0,8.219e-05,2]
[356293733,1742206233337,-500.0,8.219e-05,2]
[356293734,1742206233347,-500.0,8.219e-05,2]
[356293735,1742206233356,-500.0,8.219e-05,2]
[356293736,1742206233366,-1825.62,8.219e-05,2]
[356293737,1742206233375,-868.37,8.219e-05,2]
[356293738,1742206233385,-527.41102378,8.219e-05,2]
[356293739,1742206233394,-3671.43,8.219e-05,2]
[356293740,1742206233404,-500.0,8.219e-05,2]
[356293741,1742206233414,-500.0,8.219e-05,2]
[356293742,1742206233424,-500.0,8.219e-05,2]
[356293743,1742206233434,-511.01697191,8.219e-05,2]
[356293744,1742206233444,-2867.01,8.219e-05,2]
[356293745,1742206233454,-500.0,8.219e-05,2]
[356293746,1742206233464,-500.0,8.219e-05,2]
[356293747,1742206233474,-500.0,8.219e-05,2]
[356293748,1742206233484,-500.0,8.219e-05,2]
[356293749,1742206233494,-2880.43,8.219e-05,2]
[356293750,1742206233504,-519.73954492,8.219e-05,2]
[356293751,1742206233513,-500.0,8.219e-05,2]
[356293752,1742206233523,-500.0,8.219e-05,2]
[356293753,1742206233533,-549.25,8.219e-05,2]
[356293754,1742206233543,-500.0,8.219e-05,2]
[356293755,1742206233552,-500.0,8.219e-05,2]
[356293756,1742206233562,-572.68306786,8.219e-05,2]
[356293757,1742206233572,-1177.81,8.219e-05,2]
[356293758,1742206233582,-500.0,8.219e-05,2]
[356293759,1742206233591,-500.0,8.219e-05,2]
[356293760,1742206233601,-500.0,8.219e-05,2]
[356293761,1742206233611,-2209.04,8.219e-05,2]
[356293762,1742206233621,-500.0,8.219e-05,2]
[356293763,1742206233631,-500.0,8.219e-05,2]
[356293764,1742206233640,-1383.59,8.219e-05,2]
[356293765,1742206233651,-500.0,8.219e-05,2]
[356293766,1742206233661,-1617.23,8.219e-05,2]
[356293767,1742206233671,-6744.85,8.219e-05,2]
[356293768,1742206233680,-65804.67075136,8.219e-05,2]
[356293769,1742206233694,-389.170668,8.219e-05,2]
[356293770,1742206233706,-4713.93858064,8.219e-05,2]
[356293771,1742206233716,-500.0,8.219e-05,2]
[356293772,1742206233726,-500.0,8.219e-05,2]
[356293773,1742206233735,-500.0,8.219e-05,2]
[356293774,1742206233746,-500.0,8.219e-05,2]
[356293775,1742206233756,-1343.75647108,8.219e-05,2]
[356293796,1742206240542,-411.61161921,8.218e-05,2]
[356293810,1742206243359,-67.99698354,8.218e-05,2]
[356293811,1742206243369,-961.86352892,8.219e-05,2]
[356293812,1742206243379,-740.26,8.219e-05,2]
[356293813,1742206243388,-500.0,8.219e-05,2]
[356293814,1742206243398,-511.78064464,8.219e-05,2]
[356293815,1742206243408,-4869.18868822,8.219e-05,2]
[356293823,1742206262537,222000.0,7.919e-05,2]
[356293825,1742206437909,191.3132222,7.294e-05,2]
[356293829,1742206486972,351.76,0.00014,30]
[356293830,1742206623713,251.00000001,0.00014,30]
[356293831,1742206652203,250.0,0.00014,30]
[356293871,1742206798284,6793.8114705,7.397e-05,2]
[356293876,1742207374260,207.7413382,7.189e-05,2]
[356293903,1742207432659,-2058.0,8.118e-05,2]
[356293904,1742207432669,-335.72602193,8.118e-05,2]
[356293905,1742207432678,-300.0,8.118e-05,2]
[356293906,1742207432688,-168195.82664824,8.119e-05,2]
[356293907,1742207432699,-10793.27102644,8.119e-05,2]
[356293924,1742207438356,-501.44951117,8.119e-05,2]
[356294020,1742207730645,375.5445754,7.275e-05,2]
[356294031,1742208084697,429.5133968,7.397e-05,2]
[356294093,1742208632699,-198.58612671,8.018e-05,2]
[356294095,1742208632709,-500.0,8.117e-05,2]
[356294098,1742208632719,-300.0,8.117e-05,2]
[356294100,1742208632731,-51610.0456358,8.118e-05,3]
[356294102,1742208632740,-235.00821535,8.118e-05,2]
[356294104,1742208632750,-45862.46218241,8.119e-05,2]
[356294189,1742208638675,-7765.50726318,8.119e-05,2]
[356294206,1742208641170,2704.67716141,8e-05,2]
[356294229,1742209036057,2000.0,0.0001515,109]
[356294230,1742209110897,24624.8356955,7.397e-05,2]
[356294232,1742209563443,-200.0,0.00016595,120]
[356294264,1742209831965,-1651.913417,8.018e-05,2]
[356294266,1742209831975,-500.0,8.018e-05,2]
[356294268,1742209831985,-215.72122864,8.018e-05,2]
[356294270,1742209831995,-500.0,8.018e-05,2]
[356294272,1742209832006,-500.0,8.018e-05,2]
[356294274,1742209832016,-500.0,8.018e-05,2]
[356294276,1742209832026,-500.0,8.018e-05,2]
[356294278,1742209832035,-615.56567804,8.018e-05,2]
[356294280,1742209832045,-500.0,8.018e-05,2]
[356294282,1742209832054,-259.22146273,8.018e-05,2]
[356294284,1742209832065,-500.0,8.018e-05,2]
[356294286,1742209832075,-41122.51838664,8.019e-05,2]
[356294363,1742209837692,-3061.65590643,8.019e-05,2]
[356294400,1742209845998,-500.0,8.018e-05,2]
[356294401,1742209846009,-78242.97868046,8.019e-05,2]
[356294402,1742209865027,-200.0,0.00013698,15]
[356294403,1742209866758,-200.0,0.00013698,15]
[356294404,1742209868554,-200.0,0.00013698,15]
[356294405,1742209892711,-200.0,0.00013698,15]
[356294417,1742209941273,1000.0,8e-05,2]
[356294448,1742211032022,-397.6233436,8.01e-05,2]
[356294449,1742211032032,-640.40018673,8.118e-05,2]
[356294450,1742211032042,-500.0,8.118e-05,2]
[356294451,1742211032051,-500.0,8.118e-05,2]